fUSD/lending_fUSD_20250801
["ID","MTS","AMOUNT","RATE_DAILY","PERIOD"]
[376735603,1754092242569,-400.0,0.00024657,3]
[376735604,1754092242579,-477.52,0.00024657,3]
[376735605,1754092242588,-400.0,0.00024657,3]
[376735606,1754092242598,-400.0,0.00024657,3]
[376735607,1754092242608,-400.0,0.00024657,3]
[376735608,1754092242619,-400.0,0.00024657,3]
[376735609,1754092242629,-400.0,0.00024657,3]
[376735610,1754092242638,-400.0,0.00024657,3]
[376735611,1754092242648,-400.0,0.00024657,3]
[376735612,1754092242659,-500.0,0.00024657,3]
[376735613,1754092242669,-1811.42,0.00024657,3]
[376735614,1754092242679,-458.77,0.00024657,3]
[376735615,1754092242688,-400.0,0.00024657,3]
[376735616,1754092242698,-400.0,0.00024657,3]
[376735617,1754092242708,-400.0,0.00024657,3]
[376735619,1754092242717,-400.0,0.00024657,3]
[376735622,1754092242728,-400.0,0.00024657,3]
[376735624,1754092242741,-400.0,0.00024657,3]
[376735626,1754092242750,-400.0,0.00024657,3]
[376735628,1754092242760,-400.0,0.00024657,3]
[376735630,1754092242770,-400.0,0.00024657,3]
[376735632,1754092242779,-400.0,0.00024657,3]
[376735634,1754092242789,-400.0,0.00024657,3]
[376735636,1754092242798,-400.0,0.00024657,3]
[376735638,1754092242807,-400.0,0.00024657,3]
[376735640,1754092242817,-782.16,0.00024657,3]
[376735642,1754092242826,-400.0,0.00024657,3]
[376735643,1754092242836,-400.0,0.00024657,3]
[376735644,1754092242845,-587.13,0.00024657,3]
[376735645,1754092242854,-400.0,0.00024657,3]
[376735646,1754092242864,-402.32570163,0.00024657,3]
[376735647,1754092242873,-400.0,0.00024657,3]
[376735649,1754092242882,-400.0,0.00024657,3]
[376735650,1754092242892,-400.0,0.00024657,3]
[376735652,1754092242902,-400.0,0.00024657,3]
[376735654,1754092242912,-400.0,0.00024657,3]
[376735656,1754092242924,-400.0,0.00024657,3]
[376735658,1754092242934,-400.0,0.00024657,3]
[376735660,1754092242944,-400.0,0.00024657,3]
[376735661,1754092242953,-400.0,0.00024657,3]
[376735662,1754092242963,-400.0,0.00024657,3]
[376735663,1754092242972,-401.40454386,0.00024657,3]
[376735664,1754092242981,-400.0,0.00024657,3]
[376735665,1754092242990,-400.0,0.00024657,3]
[376735666,1754092243000,-400.0,0.00024657,3]
[376735667,1754092243009,-400.0,0.00024657,3]
[376735668,1754092243018,-400.0,0.00024657,3]
[376735669,1754092243029,-400.0,0.00024657,3]
[376735670,1754092243039,-400.0,0.00024657,3]
[376735671,1754092243049,-400.0,0.00024657,3]
[376735672,1754092243060,-400.0,0.00024657,3]
[376735673,1754092243070,-3137.67,0.00024657,3]
[376735674,1754092243080,-400.0,0.00024657,3]
[376735675,1754092243090,-400.0,0.00024657,3]
[376735676,1754092243100,-400.0,0.00024657,3]
[376735677,1754092243111,-420.39,0.00024657,3]
[376735678,1754092243121,-400.0,0.00024657,3]
[376735679,1754092243131,-400.0,0.00024657,3]
[376735680,1754092243140,-400.0,0.00024657,3]
[376735681,1754092243150,-963.1,0.00024657,3]
[376735682,1754092243160,-400.0,0.00024657,3]
[376735683,1754092243169,-400.0,0.00024657,3]
[376735684,1754092243179,-400.0,0.00024657,3]
[376735685,1754092243188,-400.0,0.00024657,3]
[376735686,1754092243197,-400.0,0.00024657,3]
[376735687,1754092243206,-400.0,0.00024657,3]
[376735688,1754092243215,-400.0,0.00024657,3]
[376735689,1754092243225,-1779.43,0.00024657,3]
[376735690,1754092243234,-400.0,0.00024657,3]
[376735691,1754092243243,-400.0,0.00024657,3]
[376735692,1754092243252,-400.0,0.00024657,3]
[376735693,1754092243261,-400.0,0.00024657,3]
[376735694,1754092243271,-400.0,0.00024657,3]
[376735695,1754092243280,-462.72607896,0.00024657,3]
[376735696,1754092243289,-400.0,0.00024657,3]
[376735697,1754092243298,-400.0,0.00024657,3]
[376735698,1754092243309,-400.0,0.00024657,3]
[376735699,1754092243320,-400.0,0.00024657,3]
[376735700,1754092243330,-400.0,0.00024657,3]
[376735701,1754092243339,-400.0,0.00024657,3]
[376735702,1754092243349,-400.0,0.00024657,3]
[376735703,1754092243358,-400.0,0.00024657,3]
[376735704,1754092243368,-400.0,0.00024657,3]
[376735705,1754092243377,-400.0,0.00024657,3]
[376735706,1754092243387,-2002.11,0.00024657,3]
[376735707,1754092243396,-400.0,0.00024657,3]
[376735708,1754092243406,-236.32546755,0.00024657,3]
[376735709,1754092243415,-400.0,0.00024657,3]
[376735710,1754092243425,-400.0,0.00024657,3]
[376735711,1754092243434,-400.0,0.00024657,3]
[376735712,1754092243444,-400.0,0.00024657,3]
[376735713,1754092243454,-400.0,0.00024657,3]
[376735714,1754092243463,-323.46414631,0.00024657,3]
[376735715,1754092243473,-400.0,0.00024657,3]
[376735716,1754092243482,-400.0,0.00024657,3]
[376735717,1754092243491,-400.0,0.00024657,3]
[376735718,1754092243500,-400.0,0.00024657,3]
[376735719,1754092243510,-400.0,0.00024657,3]
[376735720,1754092243519,-400.0,0.00024657,3]
[376735721,1754092243528,-400.0,0.00024657,3]
[376735722,1754092243537,-400.0,0.00024657,3]
[376735723,1754092243546,-400.0,0.00024657,3]
[376735724,1754092243557,-177.25005017,0.00024657,3]
[376735725,1754092243566,-400.0,0.00024657,3]
[376735726,1754092243575,-400.0,0.00024657,3]
[376735727,1754092243585,-400.0,0.00024657,3]
[376735728,1754092243595,-400.0,0.00024657,3]
[376735729,1754092243605,-400.0,0.00024657,3]
[376735730,1754092243614,-500.0,0.00024657,3]
[376735731,1754092243623,-1087.61,0.00024657,3]
[376735732,1754092243632,-400.0,0.00024657,3]
[376735733,1754092243642,-400.0,0.00024657,3]
[376735734,1754092243651,-400.0,0.00024657,3]
[376735735,1754092243660,-931.73,0.00024657,3]
[376735736,1754092243670,-400.0,0.00024657,3]
[376735737,1754092243679,-400.0,0.00024657,3]
[376735738,1754092243689,-824.67,0.00024657,3]
[376735739,1754092243698,-400.0,0.00024657,3]
[376735740,1754092243707,-400.0,0.00024657,3]
[376735741,1754092243716,-400.0,0.00024657,3]
[376735742,1754092243725,-400.0,0.00024657,3]
[376735743,1754092243739,-744.06,0.00024657,3]
[376735744,1754092243748,-400.0,0.00024657,3]
[376735745,1754092243757,-400.0,0.00024657,3]
[376735746,1754092243767,-477.67,0.00024657,3]
[376735747,1754092243777,-400.0,0.00024657,3]
[376735748,1754092243786,-502.69,0.00024657,3]
[376735749,1754092243796,-878.9,0.00024657,3]
[376735750,1754092243808,-400.0,0.00024657,3]
[376735751,1754092243818,-400.0,0.00024657,3]
[376735752,1754092243827,-400.0,0.00024657,3]
[376735753,1754092243836,-605.15,0.00024657,3]
[376735754,1754092243845,-748.18,0.00024657,3]
[376735755,1754092243854,-400.0,0.00024657,3]
[376735756,1754092243863,-400.0,0.00024657,3]
[376735757,1754092243872,-400.0,0.00024657,3]
[376735758,1754092243882,-400.0,0.00024657,3]
[376735759,1754092243891,-400.0,0.00024657,3]
[376735760,1754092243900,-414.05917423,0.00024657,3]
[376735761,1754092243910,-400.0,0.00024657,3]
[376735762,1754092243919,-400.0,0.00024657,3]
[376735763,1754092243929,-688.7,0.00024657,3]
[376735764,1754092243939,-400.0,0.00024657,3]
[376735765,1754092243948,-400.0,0.00024657,3]
[376735766,1754092243958,-400.0,0.00024657,3]
[376735767,1754092243967,-400.0,0.00024657,3]
[376735768,1754092243976,-824.75,0.00024657,3]
[376735769,1754092243985,-400.0,0.00024657,3]
[376735770,1754092243994,-2134.82,0.00024657,3]
[376735771,1754092244003,-400.0,0.00024657,3]
[376735772,1754092244013,-400.0,0.00024657,3]
[376735773,1754092244022,-400.0,0.00024657,3]
[376735774,1754092244031,-674.25,0.00024657,3]
[376735775,1754092244040,-400.0,0.00024657,3]
[376735776,1754092244049,-400.0,0.00024657,3]
[376735777,1754092244060,-400.0,0.00024657,3]
[376735778,1754092244070,-400.0,0.00024657,3]
[376735779,1754092244079,-400.0,0.00024657,3]
[376735780,1754092244088,-334.81851602,0.00024657,3]
[376735781,1754092244097,-704.75,0.00024657,3]
[376735782,1754092244106,-400.0,0.00024657,3]
[376735783,1754092244115,-400.0,0.00024657,3]
[376735784,1754092244125,-400.0,0.00024657,3]
[376735785,1754092244134,-400.0,0.00024657,3]
[376735786,1754092244143,-400.0,0.00024657,3]
[376735787,1754092244153,-400.0,0.00024657,3]
[376735788,1754092244162,-658.76,0.00024657,3]
[376735789,1754092244172,-594.03,0.00024657,3]
[376735790,1754092244181,-602.08,0.00024657,3]
[376735791,1754092244190,-400.0,0.00024657,3]
[376735792,1754092244200,-400.0,0.00024657,3]
[376735793,1754092244208,-267.89490809,0.00024657,3]
[376735794,1754092244218,-400.0,0.00024657,3]
[376735795,1754092244227,-940.31,0.00024657,3]
[376735796,1754092244236,-935.95,0.00024657,3]
[376735797,1754092244245,-693.06,0.00024657,3]
[376735798,1754092244254,-400.0,0.00024657,3]
[376735799,1754092244263,-400.0,0.00024657,3]
[376735800,1754092244272,-400.0,0.00024657,3]
[376735801,1754092244282,-445.38,0.00024657,3]
[376735802,1754092244291,-400.0,0.00024657,3]
[376735803,1754092244300,-400.0,0.00024657,3]
[376735804,1754092244311,-400.0,0.00024657,3]
[376735805,1754092244320,-400.0,0.00024657,3]
[376735806,1754092244330,-400.0,0.00024657,3]
[376735807,1754092244339,-1798.46,0.00024657,3]
[376735808,1754092244348,-400.0,0.00024657,3]
[376735809,1754092244357,-400.0,0.00024657,3]
[376735810,1754092244367,-400.0,0.00024657,3]
[376735811,1754092244376,-400.0,0.00024657,3]
[376735812,1754092244385,-400.0,0.00024657,3]
[376735813,1754092244396,-1236.56,0.00024657,2]
[376735814,1754092244405,-400.0,0.00024657,3]
[376735815,1754092244415,-401.29427801,0.00024657,3]
[376735816,1754092244425,-1102.06,0.00024657,3]
[376735817,1754092244435,-400.0,0.00024657,3]
[376735818,1754092244444,-484.25,0.00024657,3]
[376735819,1754092244454,-804.01,0.00024657,3]
[376735820,1754092244464,-400.0,0.00024657,3]
[376735821,1754092244474,-419.35,0.00024657,3]
[376735822,1754092244483,-443.3,0.00024657,3]
[376735823,1754092244493,-400.0,0.00024657,3]
[376735824,1754092244502,-400.0,0.00024657,3]
[376735825,1754092244512,-400.0,0.00024657,3]
[376735826,1754092244522,-475.36,0.00024657,3]
[376735827,1754092244532,-664.18,0.00024657,3]
[376735828,1754092244541,-400.0,0.00024657,3]
[376735829,1754092244550,-1274.84,0.00024657,3]
[376735830,1754092244563,-400.0,0.00024657,3]
[376735831,1754092244572,-400.0,0.00024657,3]
[376735832,1754092244582,-924.91,0.00024657,3]
[376735833,1754092244591,-400.0,0.00024657,3]
[376735834,1754092244601,-400.0,0.00024657,3]
[376735835,1754092244610,-768.37,0.00024657,3]
[376735836,1754092244619,-400.0,0.00024657,3]
[376735837,1754092244628,-2465.96,0.00024657,3]
[376735838,1754092244638,-1101.5,0.00024657,3]
[376735839,1754092244648,-1517.07,0.00024657,3]
[376735840,1754092244658,-400.0,0.00024657,3]
[376735841,1754092244667,-400.0,0.00024657,3]
[376735842,1754092244677,-400.0,0.00024657,3]
[376735843,1754092244697,-413.87,0.00024657,3]
[376735844,1754092244708,-400.0,0.00024657,3]
[376735845,1754092244717,-400.0,0.00024657,3]
[376735846,1754092244728,-534.37,0.00024657,3]
[376735847,1754092244740,-400.0,0.00024657,3]
[376735848,1754092244750,-400.0,0.00024657,3]
[376735849,1754092244760,-400.0,0.00024657,3]
[376735850,1754092244771,-465.65,0.00024657,3]
[376735851,1754092244781,-400.0,0.00024657,3]
[376735852,1754092244791,-400.0,0.00024657,3]
[376735853,1754092244802,-400.0,0.00024657,3]
[376735854,1754092244814,-558.17,0.00024657,3]
[376735855,1754092244825,-400.0,0.00024657,3]
[376735856,1754092244835,-488.13,0.00024657,3]
[376735857,1754092244845,-1486.59,0.00024657,3]
[376735858,1754092244856,-400.0,0.00024657,3]
[376735859,1754092244867,-1046.88,0.00024657,3]
[376735860,1754092244877,-400.0,0.00024657,3]
[376735861,1754092244887,-400.0,0.00024657,3]
[376735862,1754092244897,-400.0,0.00024657,3]
[376735863,1754092244907,-400.0,0.00024657,3]
[376735864,1754092244917,-570.69,0.00024657,3]
[376735865,1754092244927,-400.0,0.00024657,3]
[376735866,1754092244937,-400.0,0.00024657,3]
[376735867,1754092244947,-400.0,0.00024657,3]
[376735868,1754092244958,-400.0,0.00024657,3]
[376735869,1754092244968,-1028.15,0.00024657,3]
[376735870,1754092244979,-400.0,0.00024657,3]
[376735871,1754092244989,-310.0,0.00024657,3]
[376735872,1754092244999,-684.98,0.00024657,3]
[376735873,1754092245009,-400.0,0.00024657,3]
[376735874,1754092245019,-400.0,0.00024657,3]
[376735875,1754092245030,-400.0,0.00024657,3]
[376735876,1754092245040,-400.0,0.00024657,3]
[376735877,1754092245050,-402.52530613,0.00024657,3]
[376735878,1754092245061,-400.0,0.00024657,3]
[376735879,1754092245071,-400.0,0.00024657,3]
[376735880,1754092245082,-400.0,0.00024657,3]
[376735881,1754092245092,-1225.81,0.00024657,3]
[376735882,1754092245103,-555.78,0.00024657,3]
[376735883,1754092245114,-400.0,0.00024657,3]
[376735884,1754092245125,-400.0,0.00024657,3]
[376735885,1754092245141,-473.46,0.00024657,3]
[376735886,1754092245151,-400.0,0.00024657,3]
[376735887,1754092245162,-629.64,0.00024657,3]
[376735888,1754092245173,-719.52,0.00024657,3]
[376735889,1754092245183,-400.0,0.00024657,3]
[376735890,1754092245194,-2204.41,0.00024657,3]
[376735891,1754092245204,-400.0,0.00024657,3]
[376735892,1754092245215,-950.31,0.00024657,3]
[376735893,1754092245226,-400.0,0.00024657,3]
[376735894,1754092245236,-823.45,0.00024657,3]
[376735895,1754092245247,-400.0,0.00024657,3]
[376735896,1754092245258,-744.92,0.00024657,3]
[376735897,1754092245269,-400.0,0.00024657,3]
[376735898,1754092245279,-400.0,0.00024657,3]
[376735899,1754092245290,-400.0,0.00024657,3]
[376735900,1754092245301,-439.83,0.00024657,3]
[376735901,1754092245313,-400.0,0.00024657,3]
[376735902,1754092245323,-798.89,0.00024657,3]
[376735903,1754092245333,-400.0,0.00024657,3]
[376735904,1754092245344,-402.13535001,0.00024657,3]
[376735905,1754092245354,-723.94,0.00024657,3]
[376735906,1754092245364,-400.0,0.00024657,3]
[376735907,1754092245374,-400.0,0.00024657,3]
[376735908,1754092245384,-400.0,0.00024657,3]
[376735909,1754092245394,-400.0,0.00024657,3]
[376735910,1754092245409,-465.33,0.00024657,3]
[376735911,1754092245420,-853.85,0.00024657,3]
[376735912,1754092245430,-9809.73,0.00024657,3]
[376735913,1754092245442,-400.0,0.00024657,3]
[376735914,1754092245452,-467.75,0.00024657,3]
[376735915,1754092245462,-1364.63,0.00024657,3]
[376735916,1754092245473,-565.31,0.00024657,3]
[376735917,1754092245484,-400.0,0.00024657,3]
[376735918,1754092245495,-400.0,0.00024657,3]
[376735919,1754092245506,-400.0,0.00024657,3]
[376735920,1754092245517,-400.0,0.00024657,3]
[376735921,1754092245527,-400.0,0.00024657,3]
[376735922,1754092245538,-400.0,0.00024657,3]
[376735923,1754092245549,-543.86,0.00024657,3]
[376735924,1754092245560,-403.24,0.00024657,3]
[376735925,1754092245570,-400.0,0.00024657,3]
[376735926,1754092245581,-400.0,0.00024657,3]
[376735927,1754092245593,-400.0,0.00024657,3]
[376735928,1754092245604,-400.0,0.00024657,3]
[376735929,1754092245614,-400.0,0.00024657,3]
[376735930,1754092245625,-400.0,0.00024657,3]
[376735931,1754092245635,-400.0,0.00024657,3]
[376735932,1754092245645,-400.0,0.00024657,3]
[376735933,1754092245655,-772.71,0.00024657,3]
[376735934,1754092245666,-440.01,0.00024657,3]
[376735935,1754092245679,-400.0,0.00024657,3]
[376735936,1754092245691,-400.0,0.00024657,3]
[376735938,1754092245702,-400.0,0.00024657,3]
[376735940,1754092245713,-400.0,0.00024657,3]
[376735941,1754092245723,-400.0,0.00024657,3]
[376735942,1754092245737,-645.67,0.00024657,3]
[376735943,1754092245747,-512.68,0.00024657,3]
[376735944,1754092245758,-482.43,0.00024657,3]
[376735945,1754092245768,-400.0,0.00024657,3]
[376735946,1754092245779,-605.68,0.00024657,3]
[376735948,1754092245790,-579.26,0.00024657,3]
[376735950,1754092245802,-2579.27,0.00024657,3]
[376735951,1754092245814,-400.0,0.00024657,3]
[376735952,1754092245827,-400.0,0.00024657,3]
[376735953,1754092245838,-400.0,0.00024657,3]
[376735954,1754092245848,-400.0,0.00024657,3]
[376735955,1754092245859,-615.7,0.00024657,3]
[376735956,1754092245869,-400.0,0.00024657,3]
[376735957,1754092245880,-2525.01,0.00024657,3]
[376735958,1754092245891,-469.94,0.00024657,3]
[376735959,1754092245903,-461.81,0.00024657,3]
[376735960,1754092245914,-441.97,0.00024657,3]
[376735961,1754092245925,-709.86,0.00024657,3]
[376735962,1754092245936,-150.85990731,0.00024657,3]
[376735963,1754092245948,-400.0,0.00024657,3]
[376735964,1754092245959,-400.0,0.00024657,3]
[376735965,1754092245969,-400.0,0.00024657,3]
[376735966,1754092245980,-400.0,0.00024657,3]
[376735967,1754092245990,-410.484519,0.00024657,3]
[376735968,1754092246001,-400.0,0.00024657,3]
[376735969,1754092246011,-400.0,0.00024657,3]
[376735970,1754092246022,-400.0,0.00024657,3]
[376735971,1754092246032,-400.0,0.00024657,3]
[376735972,1754092246043,-400.0,0.00024657,3]
[376735973,1754092246054,-400.0,0.00024657,3]
[376735974,1754092246066,-400.0,0.00024657,3]
[376735975,1754092246077,-585.21,0.00024657,3]
[376735976,1754092246088,-400.0,0.00024657,3]
[376735977,1754092246098,-400.0,0.00024657,3]
[376735978,1754092246109,-400.0,0.00024657,3]
[376735979,1754092246119,-402.10227717,0.00024657,3]
[376735980,1754092246130,-400.0,0.00024657,3]
[376735981,1754092246140,-835.18,0.00024657,3]
[376735982,1754092246151,-400.0,0.00024657,3]
[376735983,1754092246162,-796.55,0.00024657,3]
[376735984,1754092246172,-400.0,0.00024657,3]
[376735985,1754092246182,-511.61,0.00024657,3]
[376735986,1754092246192,-854.52,0.00024657,3]
[376735987,1754092246202,-400.0,0.00024657,3]
[376735988,1754092246212,-400.0,0.00024657,3]
[376735989,1754092246222,-400.0,0.00024657,3]
[376735990,1754092246232,-404.64891637,0.00024657,3]
[376735991,1754092246242,-489.3923835,0.00024657,3]
[376735992,1754092246252,-400.0,0.00024657,3]
[376735993,1754092246262,-400.0,0.00024657,3]
[376735994,1754092246272,-2107.68,0.00024657,3]
[376735995,1754092246282,-437.43094474,0.00024657,3]
[376735996,1754092246292,-460.0,0.00024657,3]
[376735997,1754092246302,-159.94516455,0.00024657,3]
[376735998,1754092246313,-622.35,0.00024657,3]
[376735999,1754092246323,-400.0,0.00024657,3]
[376736000,1754092246333,-400.0,0.00024657,3]
[376736001,1754092246344,-650.81,0.00024657,3]
[376736002,1754092246354,-400.0,0.00024657,3]
[376736003,1754092246365,-1042.6,0.00024657,3]
[376736004,1754092246383,-530.0,0.00024657,3]
[376736005,1754092246396,-400.0,0.00024657,3]
[376736006,1754092246409,-400.0,0.00024657,3]
[376736007,1754092246421,-656.89,0.00024657,3]
[376736008,1754092246434,-400.0,0.00024657,3]
[376736009,1754092246446,-1250.46,0.00024657,3]
[376736010,1754092246458,-400.0,0.00024657,3]
[376736011,1754092246469,-403.74678563,0.00024657,3]
[376736012,1754092246479,-400.0,0.00024657,3]
[376736013,1754092246490,-11887.92,0.00024657,3]
[376736014,1754092246500,-400.0,0.00024657,3]
[376736015,1754092246511,-400.0,0.00024657,3]
[376736016,1754092246522,-400.0,0.00024657,3]
[376736017,1754092246533,-400.0,0.00024657,3]
[376736018,1754092246543,-400.0,0.00024657,3]
[376736019,1754092246554,-400.0,0.00024657,3]
[376736020,1754092246566,-400.0,0.00024657,3]
[376736021,1754092246576,-400.0,0.00024657,3]
[376736022,1754092246587,-503.24,0.00024657,3]
[376736023,1754092246598,-1133.17,0.00024657,3]
[376736024,1754092246611,-915.55,0.00024657,3]
[376736025,1754092246621,-422.79,0.00024657,3]
[376736026,1754092246632,-400.0,0.00024657,3]
[376736027,1754092246642,-400.0,0.00024657,3]
[376736028,1754092246652,-405.28,0.00024657,3]
[376736029,1754092246663,-400.0,0.00024657,3]
[376736030,1754092246673,-400.0,0.00024657,3]
[376736031,1754092246684,-400.0,0.00024657,3]
[376736032,1754092246695,-469.73,0.00024657,3]
[376736033,1754092246705,-400.0,0.00024657,3]
[376736034,1754092246716,-400.0,0.00024657,3]
[376736035,1754092246726,-879.09,0.00024657,3]
[376736036,1754092246739,-400.0,0.00024657,3]
[376736037,1754092246754,-1171.14,0.00024657,3]
[376736038,1754092246765,-400.0,0.00024657,3]
[376736039,1754092246776,-400.0,0.00024657,3]
[376736040,1754092246787,-400.0,0.00024657,3]
[376736041,1754092246798,-400.0,0.00024657,3]
[376736042,1754092246809,-400.0,0.00024657,2]
[376736043,1754092246820,-400.0,0.00024657,3]
[376736044,1754092246831,-400.0,0.00024657,3]
[376736045,1754092246842,-400.0,0.00024657,3]
[376736046,1754092246853,-1169.59,0.00024657,3]
[376736047,1754092246864,-400.0,0.00024657,3]
[376736048,1754092246875,-454.2,0.00024657,3]
[376736049,1754092246886,-400.0,0.00024657,3]
[376736050,1754092246896,-612.05,0.00024657,3]
[376736051,1754092246907,-413.77,0.00024657,3]
[376736052,1754092246919,-400.0,0.00024657,3]
[376736053,1754092246929,-542.75,0.00024657,3]
[376736054,1754092246941,-400.0,0.00024657,3]
[376736056,1754092246952,-400.0,0.00024657,3]
[376736057,1754092246963,-400.0,0.00024657,3]
[376736058,1754092246975,-400.0,0.00024657,3]
[376736059,1754092246986,-935.06,0.00024657,3]
[376736060,1754092246997,-400.0,0.00024657,3]
[376736069,1754092247398,-976.31,0.00024657,3]
[376736070,1754092247423,-6161.5,0.00024657,3]
[376736071,1754092247433,-400.0,0.00024657,3]
[376736072,1754092247443,-400.0,0.00024657,3]
[376736073,1754092247452,-250.0,0.00024657,3]
[376736074,1754092247462,-504.71,0.00024657,3]
[376736075,1754092247472,-400.0,0.00024657,3]
[376736076,1754092247482,-400.0,0.00024657,3]
[376736077,1754092247492,-400.0,0.00024657,3]
[376736078,1754092247502,-1488.94,0.00024657,3]
[376736079,1754092247511,-421.6577386,0.00024657,3]
[376736080,1754092247520,-400.0,0.00024657,3]
[376736081,1754092247530,-400.0,0.00024657,3]
[376736082,1754092247540,-798.5,0.00024657,3]
[376736084,1754092247550,-400.0,0.00024657,3]
[376736086,1754092247560,-400.0,0.00024657,3]
[376736088,1754092247570,-400.0,0.00024657,3]
[376736090,1754092247580,-1053.75,0.00024657,3]
[376736092,1754092247589,-420.09,0.00024657,3]
[376736094,1754092247599,-400.0,0.00024657,3]
[376736096,1754092247609,-400.0,0.00024657,3]
[376736098,1754092247619,-400.0,0.00024657,3]
[376736100,1754092247629,-400.0,0.00024657,3]
[376736102,1754092247640,-4259.7,0.00024657,3]
[376736104,1754092247650,-400.0,0.00024657,3]
[376736106,1754092247660,-400.0,0.00024657,3]
[376736108,1754092247670,-784.11,0.00024657,3]
[376736111,1754092247680,-400.0,0.00024657,3]
[376736114,1754092247689,-468.49194218,0.00024657,3]
[376736117,1754092247699,-400.0,0.00024657,3]
[376736119,1754092247709,-539.79,0.00024657,3]
[376736121,1754092247719,-400.0,0.00024657,3]
[376736123,1754092247730,-400.0,0.00024657,3]
[376736125,1754092247743,-400.0,0.00024657,3]
[376736127,1754092247753,-400.0,0.00024657,3]
[376736129,1754092247762,-738.09,0.00024657,3]
[376736131,1754092247773,-1667.35,0.00024657,3]
[376736133,1754092247783,-400.0,0.00024657,3]
[376736135,1754092247792,-518.0,0.00024657,3]
[376736137,1754092247802,-400.0,0.00024657,3]
[376736139,1754092247812,-405.05,0.00024657,3]
[376736141,1754092247822,-400.0,0.00024657,3]
[376736143,1754092247834,-459.3,0.00024657,3]
[376736145,1754092247844,-697.22,0.00024657,3]
[376736147,1754092247854,-400.0,0.00024657,3]
[376736149,1754092247863,-447.60112237,0.00024657,3]
[376736151,1754092247873,-593.59,0.00024657,3]
[376736153,1754092247882,-400.0,0.00024657,3]
[376736155,1754092247892,-400.0,0.00024657,3]
[376736157,1754092247902,-400.0,0.00024657,3]
[376736159,1754092247911,-400.0,0.00024657,3]
[376736161,1754092247921,-645.19,0.00024657,3]
[376736164,1754092247930,-345.77871697,0.00024657,3]
[376736224,1754092248503,-54.22128303,0.00024657,3]
[376736226,1754092248513,-400.0,0.00024657,3]
[376736228,1754092248523,-1405.23589609,0.00024657,3]
[376736231,1754092248535,-469.30410391,0.00024657,3]
[376736233,1754092248545,-98.49301589,0.00024657,3]
[376736256,1754092249921,-1888.0,0.00023281,3]
[376736257,1754092249931,-294.6964995,0.00024497,2]
[376736258,1754092250216,-523.1735005,0.00024497,2]
[376736259,1754092250226,-276.97230606,0.00024657,3]
[376736260,1754092250252,-24.53467805,0.00024657,3]
[376736261,1754092250261,-412.59098817,0.00024657,3]
[376736262,1754092250270,-316.58482788,0.00024657,3]
[376736355,1754092775550,413.81,0.00026407,120]